Workbook

Sheet 1. Forside
A1: Egedal Spildevand A/S
D8: Bilag A
D13: Indholdsfortegnelse
C16: Fane nr. 2 | D16: Samlet prisloft
C17: Fane nr. 3 | D17: Driftsomkostninger
C18: Fane nr. 4 | D18: Historiske investeringer
C19: Fane nr. 5 | D19: Gennemførte investeringer
C20: Fane nr. 6 | D20: Korrektion investeringer
C21: Fane nr. 7 | D21: Planlagte investeringer
C22: Fane nr. 8 | D22: 1:1 omkostninger
C23: Fane nr. 9 | D23: Miljø- og servicemål
C24: Fane nr. 10 | D24: Klimatilpasning
C25: Fane nr. 11 | D25: Nettofinansielle poster
C26: Fane nr. 12 | D26: Over- eller underdækning
C27: Fane nr. 13 | D27: Kontrol med indtægtsrammen og oversigt over ekstraordinære effektiviseringsgevinster

Sheet 2. Samlet prisloft
A1: ='1. Forside'!A1 -> Egedal Spildevand A/S
B4: Fane 2. Samlet prisloft for 2015
B6: Driftsomkostninger
B7: Driftsomkostninger i prisloftet for 2014 | C7: ='3. Driftsomkostninger'!C29 -> 24759971.48 | D7: kr.
B8: Bortfald af væsentlige omkostninger | C8: =-'3. Driftsomkostninger'!C25 -> 0 | D8: kr.
B9: Korrektion for prisudviklingen 2014-2015 | C9: ='3. Driftsomkostninger'!C31 -> 19807.97719 | D9: kr.
B10: Forhøjelse til effektivt niveau iht. benchmarkingen | C10: ='3. Driftsomkostninger'!C37 -> 0 | D10: kr.
B11: Korrektion for generelt effektiviseringskrav | C11: =-'3. Driftsomkostninger'!C43 -> -108943.8745 | D11: kr.
B12: Korrektion for individuelt effektiviseringskrav | C12: =-'3. Driftsomkostninger'!C52 -> -1237998.574 | D12: kr.
B13: Driftsomkostninger i alt | C13: =SUM(C7:C12) -> 23432837.01 | D13: kr. | E13: =C13 -> 23432837.01 | F13: kr.
B14: Investeringer
B15: Tillæg for historiske investeringer | C15: ='4. Historiske investeringer'!C9 -> 35154327.25 | D15: kr.
B16: Tillæg for gennemførte investeringer i 2011-2013 | C16: ='5. Gennemførte investeringer'!F38 -> 2305753.982 | D16: kr.
B17: Korrektion af tillæg for planlagte investeringer vedrørende 2013 | C17: ='6. Korrektion investeringer'!C10 -> -569564.9 | D17: kr.
B18: Tillæg for planlagte investeringer i 2014 og 2015 | C18: ='7. Planlagte investeringer'!F40 -> 1255500 | D18: kr.
B19: Investeringstillæg i alt | C19: =SUM(C15:C18) -> 38146016.33 | D19: kr. | E19: =C19 -> 38146016.33 | F19: kr.
B20: Øvrige omkostninger mv.
B21: Tillæg for 1:1 omkostninger i 2015 | C21: ='8. 1-1 omkostninger'!C12 -> 5669000 | D21: kr.
B22: Tillæg vedr. revisorerklæringer og DANVA/FVD-kontingent | C22: ='8. 1-1 omkostninger'!C20 -> 84000 | D22: kr.
B23: Korrektion ift. faktiske 1:1 omkostninger i 2013 | C23: ='8. 1-1 omkostninger'!C26 -> -679028 | D23: kr.
B24: Tillæg for driftsomkostninger til miljø- og servicemål i 2015 | C24: ='9. Miljø- og servicemål'!C9 -> 285000 | D24: kr.
B25: Korrektion ift. faktiske driftsomkostninger til miljø- og servicemål i 2013 | C25: ='9. Miljø- og servicemål'!C16 -> -261446 | D25: kr.
B26: Tillæg for driftsomkostninger til medfinansiering af klimatilpasningsprojekter i 2015 | C26: ='10. Klimatilpasning'!C9 -> 305000 | D26: kr.
B27: Korrektion ift. faktiske omkostninger til medfinansiering af klimatilpasningsprojekter i 2013 | C27: ='10. Klimatilpasning'!C16 -> 0 | D27: kr.
B28: Tillæg/fradrag for nettofinansielle poster i 2015 | C28: ='11. Nettofinansielle poster'!C9 -> -300000 | D28: kr.
B29: Korrektion ift. faktiske nettofinansielle poster i 2013 | C29: ='11. Nettofinansielle poster'!C16 -> -33987 | D29: kr.
B30: Øvrige omkostninger mv. i alt | C30: =SUM(C21:C29) -> 5068539 | D30: kr. | E30: =C30 -> 5068539 | F30: kr.
B31: Historisk over- eller underdækning
B32: Tillæg/fradrag for over- eller underdækning til og med 2010 | C32: ='12. Over- eller underdækning'!C11 -> -630394.627 | D32: kr. | E32: =C32 -> -630394.627 | F32: kr.
B33: Korrektion i forhold til tidligere indtægtsramme
B34: Korrektion for overholdelse af indtægtsramme i prisloft 2013 | C34: ='13. Kontrol med indtægtsrammen'!E27 -> -6829702.111 | D34: kr. | E34: =C34 -> -6829702.111 | F34: kr.
B35: Samlet prisloft
B36: Indtægtsramme i 2015 | E36: =SUM(E13:E34) -> 59187295.61 | F36: kr.
B37: Debiteret vandmængde i 2013 | E37: 1601501 | F37: m3
B38: Prisloft 2015 | E38: =E36/E37 -> 36.9573891 | F38: kr./m3

Sheet 3. Driftsomkostninger
A1: ='1. Forside'!A1 -> Egedal Spildevand A/S
B4: Fane 3. Driftsomkostninger
B6: Driftsomkostningerne i prisloftet for 2014
B7: Korrigerede driftsomkostninger i prisloftet for 2014 (DOiPL 2014) inkl. § 8, stk. 2, nr. 1-tillæg på 2.784.021 kr. | C7: 22698560.08 | D7: kr.
B8: Prisfremskrivning 1,5 pct. | C8: =0.015*SUM(C7:C7) -> 340478.4012 | D8: kr.
B9: Generelt effektiviseringskrav (0 pct.) | C9: 0 | D9: kr.
B10: Tillæg iht. § 8, stk. 2, pkt. 1 prisfremskrevet til 2014-niveau | C10: 2784021 | D10: kr.
B11: Individuelt effektiviseringskrav | C11: 0 | D11: kr.
B12: Driftsomkostningerne i prisloftet for 2014 (DOiPL 2014) | C12: =SUM(C7:C11) -> 25823059.48 | D12: kr.
B15: Forskel i § 8, stk. 2, nr. 1 - tillæg
B17: Godkendt tillæg i PL2014 prisfremskrevet til 2014-niveau | C17: 2784021 | D17: kr.
B18: Godkendt tillæg i PL2015 prisfremskrevet til 2015-niveau | C18: 1720933 | D18: kr.
B19: Forskel | C19: =-C17+C18 -> -1063088 | D19: kr.
B20: Korrigerede driftsomkostninger i prisloftet for 2015 | C20: =C12+C19 -> 24759971.48 | D20: kr.
B23: Korrektion for forventet bortfald af væsentlige omkostninger
B24: Selskabets indberettede bortfald af væsentlige omkostninger inden 2015 | C24: 0 | D24: kr.
B25: Korrektion for forventet bortfald | C25: =SUM(C24:C24) -> 0 | D25: kr.
B28: Korrektion for prisudviklingen fra 2014-2015
B29: Driftsomkostningerne i prisloftet for 2014 | C29: =C20-C25 -> 24759971.48 | D29: kr.
B30: Prisudvikling 2014 - 2015 | C30: 0.08 | D30: pct.
B31: Korrektion for prisudvikling | C31: =C29*(C30/100) -> 19807.97719 | D31: kr.
B34: Eventuel forhøjelse til effektivt niveau iht. benchmarkingen
B35: Selskabets effektive driftsomkostninger iht. benchmarkingen | C35: 16493647.65 | D35: kr.
B36: Selskabets pristalskorrigerede driftsomkostninger i 2015-niveau | C36: =C29+C31 -> 24779779.46 | D36: kr.
B37: Eventuel forhøjelse til effektivt niveau | C37: =IF(C36>C35,0,C35-C36) -> 0 | D37: kr.
B40: Korrektion for generelt effektiviseringskrav
B41: Driftsomkostningerne i prisloftet for 2014 | C41: =C29 -> 24759971.48 | D41: kr.
B42: Generelt effektiviseringskrav | C42: 0.44 | D42: pct.
B43: Endeligt generelt effektiviseringskrav | C43: =C41*(C42/100) -> 108943.8745 | D43: kr.
B46: Korrektion for individuelt effektiviseringskrav
B47: Rå effektiviseringspotentiale | C47: 8576854.122 | D47: kr.
B48: Effektiviseringspotentiale efter eventuel korrektion for særlige forhold | C48: 8264878.481 | D48: kr.
B49: Effektiviseringspotentiale efter forsigtighedshensyn | C49: 5135218.086 | D49: kr.
B50: Effektiviseringspotentiale efter eventuel korrektion for sammensætning af signifikante costdrivere | C50: 5135218.086 | D50: kr.
B51: Umiddelbart effektiviseringskrav | C51: =C50/4 -> 1283804.521 | D51: kr.
B52: Endeligt individuelt effektiviseringskrav | C52: =IF(C51>0.05*C29,0.05*C29,IF(C51<0.01*C29,0,C51)) -> 1237998.574 | D52: kr.

Sheet 4. Historiske investeringer
A1: ='3. Driftsomkostninger'!A1 -> Egedal Spildevand A/S
B4: Fane 4. Historiske investeringer
B6: Tillæg for historiske investeringer
B7: Værdi af selskabets materielle anlægsaktiver pr. 1. januar 2010 | C7: 1561586569 | D7: kr.
B8: Den årlige standardafskrivning på de materielle anlægsaktiver iht. POLKA | C8: 35154327.25 | D8: kr.
B9: Tillæg i alt i 2015 | C9: =C8 -> 35154327.25 | D9: kr.

Sheet 5. Gennemførte investeringer
A1: ='4. Historiske investeringer'!A1 -> Egedal Spildevand A/S
B4: Fane 5. Gennemførte investeringer i 2010 - 2013
B6: Tillæg for gennemførte investeringer i 2013
B7: Beskrivelse af investeringen | C7: Årstal | D7: Std. levetid (år) | E7: Anskaffelses-pris (kr.) | F7: Afskrivning
B8: Strømpeforing Ø 200 mm < Ledningsnet = Ø 500 mm | C8: 2013 | D8: 50 | E8: 50696 | F8: =E8/D8 -> 1013.92 | G8: kr.
B9: Køretøjer, personbil | C9: 2013 | D9: 5 | E9: 163000 | F9: =E9/D9 -> 32600 | G9: kr.
B10: Ledningsnet = Ø 200 mm | C10: 2013 | D10: 75 | E10: 342805 | F10: 4570.733333 | G10: kr.
B11: Ø 200 mm < Ledningsnet = Ø 500 mm | C11: 2013 | D11: 75 | E11: 40038 | F11: 533.84 | G11: kr.
B12: Ø 500 mm < Ledningsnet = Ø 800 mm | C12: 2013 | D12: 75 | E12: 12872 | F12: 171.6266667 | G12: kr.
B13: Ø 800 mm < Ledningsnet = Ø 1000 mm | C13: 2013 | D13: 75 | E13: 328086 | F13: 4374.48 | G13: kr.
B14: Ø 1000 mm < Ledningsnet = Ø 1200 mm | C14: 2013 | D14: 75 | E14: 111359 | F14: 1484.786667 | G14: kr.
B15: Ø 1200 mm < Ledningsnet = Ø 1600 mm | C15: 2013 | D15: 75 | E15: 982350 | F15: 13098 | G15: kr.
B16: Ledningsnet > Ø 1600 mm (rørbassiner og transportledninger) | C16: 2013 | D16: 75 | E16: 4260206 | F16: 56802.74667 | G16: kr.
B17: Brønde | C17: 2013 | D17: 75 | E17: 237764 | F17: 3170.186667 | G17: kr.
B18: Stik | C18: 2013 | D18: 75 | E18: 152577 | F18: 2034.36 | G18: kr.
B19: Tryksatte minipumpestationer (husstandssystemer) | C19: 2013 | D19: 30 | E19: 342622 | F19: 11420.73333 | G19: kr.
B20: Kælder (20 - 30 m2) | C20: 2013 | D20: 75 | E20: 2209892 | F20: 29465.22667 | G20: kr.
B21: Installationer "mekaniske riste og SRO" Miljøklasse B. (20-30 m2) - Mek/EL | C21: 2013 | D21: 20 | E21: 20381 | F21: 1019.05 | G21: kr.
B22: Installationer "mekaniske riste og SRO" Miljøklasse B. (20-30 m2) - SRO | C22: 2013 | D22: 10 | E22: 222401 | F22: 22240.1 | G22: kr.
B23: Jordbassin Klasse B | C23: 2013 | D23: 50 | E23: 2473994 | F23: 49479.88 | G23: kr.
B24: Indløb-/udløbsarrangement | C24: 2013 | D24: 75 | E24: 500000 | F24: 6666.666667 | G24: kr.
B25: Beluftningstanke, Konstruktioner | C25: 2013 | D25: 50 | E25: 1069069 | F25: 21381.38 | G25: kr.
B26: Beluftningstanke, Mek/EL | C26: 2013 | D26: 20 | E26: 58928 | F26: 2946.4 | G26: kr.
B27: Ledningsnet = Ø 200 mm | C27: 2013 | D27: 75 | E27: 1257789 | F27: 16770.52 | G27: kr.
B28: Ø 200 mm < Ledningsnet = Ø 500 mm | C28: 2013 | D28: 75 | E28: 2662946 | F28: 35505.94667 | G28: kr.
B29: Ø 500 mm < Ledningsnet = Ø 800 mm | C29: 2013 | D29: 75 | E29: 1988999 | F29: 26519.98667 | G29: kr.
B30: Strømpeforing = Ø 200 mm | C30: 2013 | D30: 50 | E30: 538404 | F30: 10768.08 | G30: kr.
B31: Strømpeforing Ø 200 mm < Ledningsnet = Ø 500 mm | C31: 2013 | D31: 50 | E31: 1302135 | F31: 26042.7 | G31: kr.
B32: Brønde | C32: 2013 | D32: 75 | E32: 396299 | F32: 5283.986667 | G32: kr.
B33: Stik | C33: 2013 | D33: 75 | E33: 201571 | F33: 2687.613333 | G33: kr.
B34: Oversvømmelseskort | C34: 2013 | D34: 5 | E34: 1262661 | F34: =E34/D34 -> 252532.2 | G34: kr.
B35: Arbejdsplads - IT | C35: 2013 | D35: 5 | E35: 120662 | F35: 24132.4 | G35: kr.
B36: Tillæg for 2013 | F36: =SUM(F8:F35) -> 664717.55 | G36: kr.
B37: Tillæg for 2010 - 2012 | F37: 1641036.432 | G37: kr.
B38: Samlet tillæg for gennemførte investeringer | F38: =F36+F37 -> 2305753.982 | G38: kr.

Sheet 6. Korrektion investeringer
A1: ='5. Gennemførte investeringer'!A1 -> Egedal Spildevand A/S
B4: Fane 6. Korrektion af tillæg for planlagte investeringer
B6: Korrektion af tillæg for planlagte investeringer vedr. 2013
B7: Tillæg for planlagte investeringer i 2013 i prisloft 2013 | C7: 1074167 | D7: kr.
B8: Tillæg for planlagte investeringer i 2013 i prisloft 2014 | C8: 824833 | D8: kr.
B9: Selskabets faktiske afskrivninger på gennemførte investeringer i 2013 | C9: ='5. Gennemførte investeringer'!F36 -> 664717.55 | D9: kr.
B10: Korrektion af tillæg for planlagte investeringer vedr. 2013 | C10: =C9-C7+C9-C8 -> -569564.9 | D10: kr.

Sheet 7. Planlagte investeringer
A1: ='6. Korrektion investeringer'!A1 -> Egedal Spildevand A/S
B4: Fane 7. Planlagte investeringer
B6: Tillæg for planlagte investeringer i 2014 og 2015
B7: Beskrivelse af investeringen | C7: Årstal | D7: Std. levetid (år) | E7: Anskaffelses-pris (kr.) | F7: Afskrivning
B8: Beluftningstanke, Mek/EL | C8: 2014 | D8: 20 | E8: 750000 | F8: =E8/D8 -> 37500 | G8: kr.
B9: Indløb med riste, Konstruktioner | C9: 2014 | D9: 60 | E9: 150000 | F9: =E9/D9 -> 2500 | G9: kr.
B10: Ledningsnet = Ø 200 mm | C10: 2014 | D10: 75 | E10: 4150000 | F10: =E10/D10 -> 55333.33333 | G10: kr.
B11: Ø 200 mm < Ledningsnet = Ø 500 mm | C11: 2014 | D11: 75 | E11: 8850000 | F11: 118000 | G11: kr.
B12: Strømpeforing Ø 200 mm < Ledningsnet = Ø 500 mm | C12: 2014 | D12: 50 | E12: 5500000 | F12: 110000 | G12: kr.
B13: Stik | C13: 2014 | D13: 75 | E13: 250000 | F13: 3333.333333 | G13: kr.
B14: Tryksatte minipumpestationer (husstandssystemer) | C14: 2014 | D14: 30 | E14: 300000 | F14: 10000 | G14: kr.
B15: Pumpestationer i brønde (< 6,25 m2), Konstruktioner | C15: 2014 | D15: 50 | E15: 100000 | F15: 2000 | G15: kr.
B16: Pumpestationer i brønde (< 6,25 m2), Mek/EL | C16: 2014 | D16: 20 | E16: 650000 | F16: 32500 | G16: kr.
B17: Pumpestationer i brønde (< 6,25 m2), SRO | C17: 2014 | D17: 10 | E17: 100000 | F17: 10000 | G17: kr.
B18: Installationer "mekaniske riste og SRO" Miljøklasse A. (7-20 m2) - Mek/EL | C18: 2014 | D18: 20 | E18: 500000 | F18: 25000 | G18: kr.
B19: Forsinkelsesbassiner, lukkede uden automatisk rensning og SRO Miljøklasse B (mindre end 1.000 m3) | C19: 2014 | D19: 50 | E19: 5500000 | F19: 110000 | G19: kr.
B20: Jordbassin Klasse B | C20: 2014 | D20: 50 | E20: 4000000 | F20: 80000 | G20: kr.
B21: Indløb-/udløbsarrangement | C21: 2014 | D21: 75 | E21: 2200000 | F21: 29333.33333 | G21: kr.
B22: Beluftningstanke, Mek/EL | C22: 2015 | D22: 20 | E22: 100000 | F22: 5000 | G22: kr.
B23: Slutafvanding, slam - lavteknologisk (slambede), Konstruktioner | C23: 2015 | D23: 60 | E23: 500000 | F23: 8333.333333 | G23: kr.
B24: Slutafvanding, slam - lavteknologisk (slambede), Mek/EL | C24: 2015 | D24: 20 | E24: 200000 | F24: 10000 | G24: kr.
B25: Slutafvanding, slam - lavteknologisk (slambede), SRO | C25: 2015 | D25: 10 | E25: 50000 | F25: 5000 | G25: kr.
B26: Slutafvanding, slam - højteknologisk (centrifuger), Konstruktioner | C26: 2015 | D26: 60 | E26: 500000 | F26: 8333.333333 | G26: kr.
B27: Slutafvanding, slam - højteknologisk (centrifuger), Mek/El | C27: 2015 | D27: 20 | E27: 100000 | F27: 5000 | G27: kr.
B28: Slutafvanding, slam - højteknologisk (centrifuger), SRO | C28: 2015 | D28: 10 | E28: 500000 | F28: 50000 | G28: kr.
B29: Ø 200 mm < Ledningsnet = Ø 500 mm | C29: 2015 | D29: 75 | E29: 15000000 | F29: 200000 | G29: kr.
B30: Strømpeforing Ø 200 mm < Ledningsnet = Ø 500 mm | C30: 2015 | D30: 50 | E30: 3000000 | F30: 60000 | G30: kr.
B31: Stik | C31: 2015 | D31: 75 | E31: 250000 | F31: 3333.333333 | G31: kr.
B32: Pumpestationer i brønde (< 6,25 m2), Konstruktioner | C32: 2015 | D32: 50 | E32: 1000000 | F32: 20000 | G32: kr.
B33: Pumpestationer i brønde (< 6,25 m2), Mek/EL | C33: 2015 | D33: 20 | E33: 300000 | F33: 15000 | G33: kr.
B34: Pumpestationer i brønde (< 6,25 m2), SRO | C34: 2015 | D34: 10 | E34: 250000 | F34: 25000 | G34: kr.
B35: Forsinkelsesbassiner, lukkede uden automatisk rensning og SRO Miljøklasse B (mindre end 1.000 m3) | C35: 2015 | D35: 50 | E35: 7250000 | F35: 145000 | G35: kr.
B36: Jordbassin Klasse B | C36: 2015 | D36: 50 | E36: 2500000 | F36: 50000 | G36: kr.
B37: Indløb-/udløbsarrangement | C37: 2015 | D37: 75 | E37: 1500000 | F37: 20000 | G37: kr.
B38: Tillæg for 2014 | F38: =SUMIF(C8:C37,"2014",F8:F37) -> 625500 | G38: kr.
B39: Tillæg for 2015 | F39: =SUMIF(C8:C37,"2015",F8:F37) -> 630000 | G39: kr.
B40: Tillæg i alt | F40: =F38+F39 -> 1255500 | G40: kr.

Sheet 8. 1-1 omkostninger
A1: ='7. Planlagte investeringer'!A1 -> Egedal Spildevand A/S
B4: Fane 8. 1:1 omkostninger
B6: Tillæg for budgetterede 1:1 omkostninger i 2015
B7: Betaling til Forsyningssekretariatet | C7: 33000 | D7: kr.
B8: Spildevandsafgift | C8: 200000 | D8: kr.
B9: Betaling af selskabsskatter | C9: 980000 | D9: kr.
B10: Køb af varer og tjenesteydelser hos et andet prisloftreguleret vandselskab | C10: 4440000 | D10: kr.
B11: Ejendomsskatter | C11: 16000 | D11: kr.
B12: Tillæg i alt | C12: =SUM(C7:C11) -> 5669000 | D12: kr.
B17: Tillæg for budgetterede nødvendige udgifter til revisorerklæringer samt ordinært medlemskab af DANVA og FVD i 2015
B18: Betaling for ordinært medlemskab af DANVA/FVD | C18: 58000 | D18: kr.
B19: Betaling for revisorerklæringer | C19: 26000 | D19: kr.
B20: Tillæg i alt | C20: =SUM(C18:C19) -> 84000 | D20: kr.
B23: Korrektion af tillæg for faktiske 1:1 omkostninger (inkl. revisorerklæringer og ordinært medlemskab af DANVA/FVD) i 2013
B24: Selskabets faktiske 1:1 omkostninger mv. i 2013, jf. reguleringsregnskabet | C24: 4307972 | D24: kr.
B25: Tillæg for budgetterede 1:1 omkostninger mv. i prisloft 2013 | C25: 4987000 | D25: kr.
B26: Korrektion af tillæg for budgetterede 1:1 omkostninger mv. i 2013 | C26: =C24-C25 -> -679028 | D26: kr.

Sheet 9. Miljø- og servicemål
A1: ='8. 1-1 omkostninger'!A1 -> Egedal Spildevand A/S
B4: Fane 9. Driftsomkostninger til miljø- og servicemål
B6: Tillæg for budgetterede driftsomkostninger til miljø- og servicemål i 2015
B7: Indsats mod oversvømmelse (radarprojektet) | C7: 170000 | D7: kr.
B8: Skenkelsø Sø og udløb | C8: 115000 | D8: kr.
B9: Tillæg i alt | C9: =SUM(C7:C8) -> 285000 | D9: kr.
B13: Korrektion af tillæg for faktiske driftsomkostninger til miljø- og servicemål i 2013
B14: Selskabets faktiske driftsomkostninger til miljø- og servicemål i 2013, jf. reguleringsregnskabet | C14: 268784 | D14: kr.
B15: Tillæg for budgetterede driftsomkostninger til miljø- og servicemål i prisloft 2013 | C15: 530230 | D15: kr.
B16: Korrektion af tillæg for budgetterede driftsomkostninger til miljø- og servicemål i 2013 | C16: =C14-C15 -> -261446 | D16: kr.

Sheet 10. Klimatilpasning
A1: ='9. Miljø- og servicemål'!A1 -> Egedal Spildevand A/S
B4: Fane 10. Medfinansiering af klimatilpasningsprojekter
B7: Tillæg for budgetterede omkostninger til medfinansiering af klimatilpasningsprojekter i 2015
B8: Stenløse Å | C8: 305000 | D8: kr.
B9: Tillæg i alt | C9: =SUM(C8:C8) -> 305000 | D9: kr.
B13: Korrektion af tillæg for faktiske omkostninger til medfinansiering af klimatilpasningsprojekter i 2013
B14: Selskabets faktiske driftsomkostninger til klimatilpasningsprojekter i 2013, jf. reguleringsregnskabet | C14: 0 | D14: kr.
B15: Tillæg for budgetterede driftsomkostninger til klimatilpasningsprojekter i prisloft 2013 | C15: 0 | D15: kr.
B16: Korrektion af tillæg for budgetterede omkostninger til klimatilpasningsprojekter i 2013 | C16: =C14-C15 -> 0 | D16: kr.

Sheet 11. Nettofinansielle poster
A1: ='10. Klimatilpasning'!A1 -> Egedal Spildevand A/S
B4: Fane 11. Nettofinansielle poster
B6: Tillæg for budgetterede nettofinansielle poster i 2015
B7: Budgetterede renteudgifter og gebyrer i 2015 | C7: 0 | D7: kr.
B8: Budgetterede renteindtægter i 2015 | C8: 300000 | D8: kr.
B9: Tillæg/fradrag i alt | C9: =C7-C8 -> -300000 | D9: kr.
B13: Korrektion af tillæg for faktiske nettofinansielle poster i 2013
B14: Selskabets faktiske nettofinansielle poster i 2013, jf. reguleringsregnskabet | C14: -133987 | D14: kr.
B15: Tillæg for budgetterede nettofinansielle poster i prisloft 2013 | C15: -100000 | D15: kr.
B16: Korrektion af tillæg for budgetterede nettofinansielle poster i 2013 | C16: =C14-C15 -> -33987 | D16: kr.

Sheet 12. Over- eller underdækning
A1: ='11. Nettofinansielle poster'!A1 -> Egedal Spildevand A/S
B4: Fane 12. Over- eller underdækning til og med 2010
B6: Tillæg/fradrag for over- eller underdækning til og med 2010
B7: Opgjort over- eller underdækning per 31. december 2010 | C7: -3544390 | D7: kr.
B8: Heraf beløb indregnet i prislofterne for 2011 - 2014 | C8: 237977.7619 | D8: kr.
B9: Endnu ikke indregnet over- eller underdækning | C9: =C7-C8 -> -3782367.762 | D9: kr.
B10: Resterende indregningsperiode (fastsat i prisloftet for 2012) | C10: 6 | D10: år
B11: Tillæg/fradrag i alt | C11: =IF(C7=0,0,C9/C10) -> -630394.627 | D11: kr.

Sheet 13. Kontrol med indtægtsrammen
A1: ='12. Over- eller underdækning'!A1 -> Egedal Spildevand A/S
B4: Fane 13. Korrektion for overholdelse af indtægtsrammen i prisloftet for 2013
B6: Samlet opgørelse vedrørende overholdelse af indtægtsrammen i prisloftet for 2013
B7: Indtægtsramme i prisloftet for 2013 | E7: 69171896.97 | F7: kr.
B8: Ikke anvendt likviditet vedrørende investeringer i 2013
B9: Tillæg for historiske investeringer | C9: 35100905.08 | D9: kr.
B10: Tillæg for gennemførte investeringer i 2011 | C10: 1705666 | D10: kr.
B11: Korrektion af tillæg for planlagte investeringer i 2011 | C11: 29229 | D11: kr.
B12: Tillæg for planlagte investeringer i 2012 og 2013 | C12: 2122500 | D12: kr.
B13: Indtægter fra tilslutningsbidrag | C13: 2795420 | D13: kr.
B14: Indtægter fra salg af anlægsaktiver | C14: 0 | D14: kr.
B15: Erstatninger vedr. anlægsaktiver mv. | C15: 0 | D15: kr.
B16: Ekstraordinær effektiviseringsgevinst anvendt til investeringer | C16: 0 | D16: kr.
B17: Udgifter til investeringer | C17: -30746844 | D17: kr.
B18: Ikke anvendt likviditet vedr. investeringer i alt | C18: =SUM(C9:C17) -> 11006876.08 | D18: kr. | E18: =IF(C18<0,0,-C18) -> -11006876.08 | F18: kr.
B19: Ekstraordinære effektiviseringsgevinster anvendt til takstnedsættelse
B20: Ekstraordinær effektiviseringsgevinst anvendt til takstnedsættelse | C20: 0 | D20: kr. | E20: =-C20 -> 0 | F20: kr.
B21: Korrektion af ikke opkrævet tillæg fra 2011 i prisloft 2013
B22: Korrektion af ikke opkrævet tillæg fra 2011 i prisloft 2013 | C22: 0 | D22: kr. | E22: =-C22 -> 0 | F22: kr.
B23: Indtægter fra primære aktiviteter mv.
B24: Indtægter fra kubikmetertakster, faste takster, særbidrag, målergebyrer samt andre takster og gebyrer | C24: 64994723 | D24: kr.
B25: Andre indtægter i prisloftåret, som selskabet har opnået i forbindelse med eller som følge af selskabets primære aktiviteter | C25: 0 | D25: kr.
B26: Indtægter fra primære aktiviteter mv. i alt | C26: =SUM(C24:C25) -> 64994723 | D26: kr. | E26: =-C26 -> -64994723 | F26: kr.
B27: Tillæg/fradrag i prisloftet for 2015 i alt | E27: =E7+E18+E20+E22+E26 -> -6829702.111 | F27: kr.
B31: Oversigt over ekstraordinære effektiviseringsgevinster
C33: 2012 | E33: 2013 | G33: 2014 | I33: 2015 | K33: 2016
B34: Indhentet ekstraordinær effektiviseringsgevinst | C34: 326845 | D34: kr. | E34: 371007 | F34: kr. | H34: kr. | J34: kr. | L34: kr.
B35: Gevinst anvendt til investeringer | C35: 0 | D35: kr. | E35: 0 | F35: kr. | H35: kr. | J35: kr. | L35: kr.
B36: Gevinst anvendt til takstnedsættelse | C36: 0 | D36: kr. | E36: 0 | F36: kr. | H36: kr. | J36: kr. | L36: kr.
B37: Korrektion for effektiviseringsgevinst der ikke er anvendt inden 4 år | C37: 0 | D37: kr. | E37: 0 | F37: kr. | H37: kr. | J37: kr. | K37: =IF(C38>SUM(E35:I37),C38-SUM(E35:I36),0)*-1 -> -326845 | L37: kr.
B38: Resterende gevinst | C38: =C34-C35-C36 -> 326845 | D38: kr. | E38: =C38+E34-E35-E36 -> 697852 | F38: kr. | G38: =E38+G34-G35-G36 -> 697852 | H38: kr. | I38: =G38+I34-I35-I36 -> 697852 | J38: kr. | K38: =I38+K34-K35-K36+K37 -> 371007 | L38: kr.
